fUST/lending_fUST_20250701
["ID","MTS","AMOUNT","RATE_DAILY","PERIOD"]
[368735828,1751337036309,-460.0,0.0001845,2]
[368735829,1751337036318,-360.69,0.0001845,2]
[368735830,1751337036327,-246.1456091,0.0001845,2]
[368735831,1751337036450,-1542.5943909,0.0001845,2]
[368735832,1751337036459,-460.0,0.0001845,2]
[368735833,1751337036469,-2476.94,0.0001845,2]
[368735834,1751337036479,-2036.86,0.0001845,2]
[368735835,1751337036488,-460.0,0.0001845,2]
[368735836,1751337036498,-600.70071868,0.0001845,2]
[368735837,1751337036507,-513.1538647,0.0001845,2]
[368735838,1751337036517,-600.70071868,0.0001845,2]
[368735839,1751337036527,-600.70071868,0.0001845,2]
[368735840,1751337036537,-600.70071868,0.0001845,2]
[368735841,1751337036546,-600.70071868,0.0001845,2]
[368735842,1751337036555,-600.70071868,0.0001845,2]
[368735843,1751337036565,-600.70071868,0.0001845,2]
[368735844,1751337036575,-600.70071868,0.0001845,2]
[368735845,1751337036585,-600.70071868,0.0001845,2]
[368735846,1751337036594,-600.70071868,0.0001845,2]
[368735847,1751337036603,-600.70071868,0.0001845,2]
[368735848,1751337036613,-600.70071868,0.0001845,2]
[368735849,1751337036622,-600.70071868,0.0001845,2]
[368735850,1751337036632,-600.70071868,0.0001845,2]
[368735851,1751337036641,-600.70071868,0.0001845,2]
[368735852,1751337036651,-600.70071868,0.0001845,2]
[368735853,1751337036660,-600.70071868,0.0001845,2]
[368735854,1751337036669,-600.70071868,0.0001845,2]
[368735855,1751337036679,-600.70071868,0.0001845,2]
[368735856,1751337036690,-600.70071868,0.0001845,2]
[368735857,1751337036699,-600.70071868,0.0001845,2]
[368735858,1751337036708,-460.0,0.0001845,2]
[368735859,1751337036720,-935.68,0.0001845,2]
[368735860,1751337036729,-897.33464109,0.0001845,2]
[368735861,1751337036739,-897.33464109,0.0001845,2]
[368735862,1751337036750,-897.33464109,0.0001845,2]
[368735863,1751337036759,-897.33464109,0.0001845,2]
[368735864,1751337036770,-897.33464109,0.0001845,2]
[368735865,1751337036779,-897.33464109,0.0001845,2]
[368735866,1751337036789,-897.33464109,0.0001845,2]
[368735867,1751337036799,-897.33464109,0.0001845,2]
[368735868,1751337036809,-897.33464109,0.0001845,2]
[368735869,1751337036818,-460.0,0.0001845,2]
[368735870,1751337036827,-460.0,0.0001845,2]
[368735871,1751337036838,-460.0,0.0001845,2]
[368735872,1751337036847,-460.0,0.0001845,2]
[368735873,1751337036857,-389.42,0.0001845,2]
[368735874,1751337036867,-460.0,0.0001845,2]
[368735875,1751337036877,-460.0,0.0001845,2]
[368735876,1751337036888,-460.0,0.0001845,2]
[368735877,1751337036899,-609.87,0.0001845,2]
[368735878,1751337036909,-460.0,0.00018451,2]
[368735879,1751337036918,-460.0,0.00018451,2]
[368735880,1751337036927,-280.3905822,0.00018451,2]
[368735881,1751337036936,-460.0,0.00018451,2]
[368735882,1751337036946,-460.0,0.00018451,2]
[368735883,1751337036955,-460.0,0.00018451,2]
[368735884,1751337036965,-460.0,0.00018451,2]
[368735885,1751337036976,-460.0,0.00018451,2]
[368735886,1751337036985,-460.0,0.00018451,2]
[368735887,1751337036995,-460.0,0.00018451,2]
[368735888,1751337037004,-460.0,0.00018451,2]
[368735889,1751337037014,-461.18838253,0.00018451,2]
[368735890,1751337037024,-460.0,0.00018451,2]
[368735891,1751337037033,-460.0,0.00018451,2]
[368735892,1751337037043,-460.0,0.00018451,2]
[368735893,1751337037053,-460.0,0.00018451,2]
[368735894,1751337037063,-460.0,0.00018451,2]
[368735895,1751337037073,-460.0,0.00018451,2]
[368735896,1751337037082,-945.61,0.00018451,2]
[368735897,1751337037093,-460.0,0.00018451,2]
[368735898,1751337037104,-460.0,0.00018451,2]
[368735899,1751337037114,-315.17,0.00018451,2]
[368735900,1751337037124,-460.0,0.00018451,2]
[368735901,1751337037133,-521.02,0.00018451,2]
[368735902,1751337037143,-460.0,0.00018451,2]
[368735903,1751337037152,-460.0,0.00018451,2]
[368735904,1751337037164,-543.21,0.00018451,2]
[368735905,1751337037176,-460.0,0.00018451,2]
[368735906,1751337037186,-460.0,0.00018451,2]
[368735907,1751337037197,-413.88,0.00018451,2]
[368735908,1751337037208,-460.0,0.00018451,2]
[368735909,1751337037218,-1813.13,0.00018451,2]
[368735910,1751337037340,-460.0,0.00018451,2]
[368735911,1751337037351,-460.0,0.00018451,2]
[368735912,1751337037361,-460.0,0.00018451,2]
[368735913,1751337037371,-460.0,0.00018451,2]
[368735914,1751337037380,-567.87,0.00018451,2]
[368735915,1751337037390,-460.0,0.00018451,2]
[368735916,1751337037399,-460.0,0.00018451,2]
[368735917,1751337037409,-168.5,0.00018451,2]
[368735918,1751337037418,-460.0,0.00018451,2]
[368735919,1751337037427,-460.0,0.00018451,2]
[368735920,1751337037437,-460.0,0.00018451,2]
[368735921,1751337037446,-545.78,0.00018451,2]
[368735922,1751337037456,-460.0,0.00018451,2]
[368735923,1751337037466,-460.0,0.00018451,2]
[368735924,1751337037476,-476.21,0.00018451,2]
[368735925,1751337037486,-460.0,0.00018451,2]
[368735926,1751337037495,-460.0,0.00018451,2]
[368735927,1751337037505,-460.0,0.00018451,2]
[368735928,1751337037514,-460.0,0.00018451,2]
[368735929,1751337037524,-595.55,0.00018451,2]
[368735930,1751337037534,-460.0,0.00018451,2]
[368735931,1751337037543,-460.0,0.00018451,2]
[368735932,1751337037553,-460.0,0.00018451,2]
[368735933,1751337037562,-460.0,0.00018451,2]
[368735934,1751337037572,-460.0,0.00018451,2]
[368735935,1751337037582,-460.0,0.00018451,2]
[368735936,1751337037593,-460.0,0.00018451,2]
[368735937,1751337037602,-460.0,0.00018452,2]
[368735938,1751337037612,-460.0,0.00018452,2]
[368735939,1751337037622,-460.83051256,0.00018452,2]
[368735940,1751337037632,-462.02711765,0.00018452,2]
[368735941,1751337037641,-255.68808964,0.00018452,2]
[368735942,1751337037650,-460.0,0.00018452,2]
[368735943,1751337037660,-460.0,0.00018452,2]
[368735944,1751337037669,-511.1,0.00018452,2]
[368735946,1751337037679,-220.64,0.00018452,2]
[368735948,1751337037689,-352.92,0.00018452,2]
[368735950,1751337037698,-460.0,0.00018452,2]
[368735951,1751337037708,-460.0,0.00018452,2]
[368735952,1751337037719,-460.0,0.00018452,2]
[368735953,1751337037728,-460.0,0.00018452,2]
[368735954,1751337037738,-460.0,0.00018452,2]
[368735955,1751337037749,-485.41,0.00018452,2]
[368735956,1751337037759,-460.0,0.00018452,2]
[368735957,1751337037769,-460.0,0.00018452,2]
[368735958,1751337037779,-460.0,0.00018452,2]
[368735960,1751337037789,-460.0,0.00018452,2]
[368735961,1751337037799,-460.0,0.00018452,2]
[368735963,1751337037808,-460.0,0.00018452,2]
[368735965,1751337037818,-460.0,0.00018452,2]
[368735967,1751337037827,-900.2,0.00018452,2]
[368735969,1751337037837,-460.0,0.00018452,2]
[368735970,1751337037846,-460.0,0.00018452,2]
[368735971,1751337037856,-460.0,0.00018452,2]
[368735973,1751337037865,-460.0,0.00018452,2]
[368735974,1751337037876,-460.0,0.00018452,2]
[368735975,1751337037885,-460.0,0.00018452,2]
[368735976,1751337037894,-1592.0,0.00018452,2]
[368735977,1751337037904,-460.0,0.00018452,2]
[368735978,1751337037914,-460.0,0.00018452,2]
[368735979,1751337037923,-460.0,0.00018452,2]
[368735980,1751337037934,-460.0,0.00018452,2]
[368735981,1751337037944,-915.52,0.00018452,2]
[368735982,1751337037953,-2903.42,0.00018452,2]
[368735983,1751337037963,-460.0,0.00018452,2]
[368735984,1751337037973,-460.0,0.00018452,2]
[368735985,1751337037983,-460.0,0.00018452,2]
[368735986,1751337037993,-460.0,0.00018452,2]
[368735987,1751337038002,-662.92,0.00018452,2]
[368735988,1751337038011,-1450.0,0.00018452,2]
[368735989,1751337038021,-516.56,0.00018452,2]
[368735990,1751337038030,-460.0,0.00018452,2]
[368735991,1751337038041,-460.0,0.00018452,2]
[368735992,1751337038052,-460.0,0.00018452,2]
[368735993,1751337038063,-2945.16,0.00018452,2]
[368735994,1751337038072,-1087.5,0.00018452,2]
[368735995,1751337038082,-460.0,0.00018452,2]
[368735996,1751337038091,-577.68,0.00018452,2]
[368735997,1751337038101,-1189.54,0.00018452,2]
[368735998,1751337038110,-460.0,0.00018452,2]
[368735999,1751337038120,-473.13267698,0.00018453,2]
[368736000,1751337038129,-460.0,0.00018453,2]
[368736001,1751337038139,-460.0,0.00018454,2]
[368736002,1751337038149,-460.0,0.00018454,2]
[368736003,1751337038159,-291.16037186,0.00018454,2]
[368736004,1751337038171,-200.04355583,0.00018454,2]
[368736005,1751337038186,-259.95644417,0.00018454,2]
[368736007,1751337038196,-475.82,0.00018454,2]
[368736009,1751337038206,-460.0,0.00018454,2]
[368736010,1751337038215,-463.08401705,0.00018454,2]
[368736011,1751337038225,-460.0,0.00018454,2]
[368736012,1751337038235,-460.0,0.00018454,2]
[368736013,1751337038244,-460.0,0.00018454,2]
[368736014,1751337038254,-582.34,0.00018454,2]
[368736015,1751337038263,-460.0,0.00018454,2]
[368736016,1751337038273,-552.31,0.00018454,2]
[368736017,1751337038282,-460.0,0.00018454,2]
[368736018,1751337038292,-460.0,0.00018454,2]
[368736019,1751337038301,-460.0,0.00018454,2]
[368736020,1751337038311,-460.0,0.00018454,2]
[368736021,1751337038321,-460.0,0.00018454,2]
[368736022,1751337038330,-173.61,0.00018454,2]
[368736023,1751337038340,-430.18668565,0.00018454,2]
[368736024,1751337038350,-460.0,0.00018454,2]
[368736025,1751337038359,-460.0,0.00018454,2]
[368736026,1751337038369,-500.0,0.00018454,2]
[368736027,1751337038378,-586.97902947,0.00018454,2]
[368736028,1751337038388,-460.0,0.00018454,2]
[368736029,1751337038397,-460.0,0.00018454,2]
[368736030,1751337038407,-460.0,0.00018454,2]
[368736031,1751337038417,-460.0,0.00018454,2]
[368736032,1751337038427,-460.0,0.00018454,2]
[368736033,1751337038437,-460.0,0.00018454,2]
[368736034,1751337038446,-460.0,0.00018454,2]
[368736035,1751337038455,-460.0,0.00018454,2]
[368736036,1751337038465,-460.0,0.00018454,2]
[368736037,1751337038475,-460.0,0.00018454,2]
[368736038,1751337038484,-460.0,0.00018454,2]
[368736039,1751337038493,-460.0,0.00018454,2]
[368736040,1751337038503,-439.65430355,0.00018454,2]
[368736041,1751337038513,-460.0,0.00018454,2]
[368736042,1751337038523,-460.0,0.00018454,2]
[368736043,1751337038532,-168.0,0.00018522,2]
[368736044,1751337038542,-460.0,0.00018554,2]
[368736045,1751337038552,-460.0,0.00018555,2]
[368736046,1751337038562,-460.0,0.00018555,2]
[368736047,1751337038572,-168.0,0.00018588,2]
[368736048,1751337038581,-2611.37986323,0.00018661,2]
[368736049,1751337038591,-168.0,0.00018687,2]
[368736050,1751337038601,-168.0,0.00018715,2]
[368736051,1751337038610,-421.66,0.00018723,2]
[368736052,1751337038620,-460.0,0.00018723,2]
[368736053,1751337038630,-1297.73,0.00018723,2]
[368736054,1751337038640,-460.0,0.00018723,2]
[368736055,1751337038650,-460.0,0.00018724,2]
[368736056,1751337038659,-671.74,0.00018724,2]
[368736057,1751337038669,-1712.85,0.00018724,2]
[368736058,1751337038679,-1642.06,0.00018724,2]
[368736059,1751337038689,-460.0,0.00018724,2]
[368736060,1751337038698,-460.0,0.00018724,2]
[368736061,1751337038708,-1788.74,0.00018724,2]
[368736062,1751337038717,-460.0,0.00018724,2]
[368736063,1751337038727,-2476.94,0.00018724,2]
[368736064,1751337038737,-2036.86,0.00018724,2]
[368736065,1751337038746,-460.0,0.00018724,2]
[368736066,1751337038756,-327.60307126,0.00018724,2]
[368736067,1751337038768,-252.3,0.00018724,2]
[368736068,1751337038779,-355.77692874,0.00018724,2]
[368736069,1751337038789,-460.0,0.00018724,2]
[368736070,1751337038798,-460.0,0.00018724,2]
[368736071,1751337038808,-371.44182806,0.00018724,2]
[368736072,1751337038818,-161.01,0.00018724,2]
[368736073,1751337038827,-460.0,0.00018724,2]
[368736074,1751337038837,-460.0,0.00018724,2]
[368736075,1751337038847,-460.0,0.00018724,2]
[368736076,1751337038856,-460.0,0.00018725,2]
[368736077,1751337038865,-460.0,0.00018725,2]
[368736078,1751337038875,-460.0,0.00018725,2]
[368736079,1751337038884,-497.49113325,0.00018725,2]
[368736080,1751337038894,-460.0,0.00018725,2]
[368736081,1751337038904,-285.2738369,0.00018725,2]
[368736082,1751337038913,-460.0,0.00018725,2]
[368736083,1751337038923,-462.89974515,0.00018725,2]
[368736084,1751337038933,-464.63812807,0.00018725,2]
[368736085,1751337038943,-460.0,0.00018725,2]
[368736086,1751337038952,-460.0,0.00018725,2]
[368736087,1751337038962,-460.0,0.00018725,2]
[368736088,1751337038971,-460.0,0.00018725,2]
[368736089,1751337038981,-945.61,0.00018725,2]
[368736090,1751337038991,-203.05,0.00018725,2]
[368736091,1751337039001,-460.0,0.00018725,2]
[368736092,1751337039011,-460.0,0.00018725,2]
[368736093,1751337039020,-460.0,0.00018725,2]
[368736094,1751337039030,-460.0,0.00018725,2]
[368736095,1751337039040,-543.21,0.00018725,2]
[368736096,1751337039049,-460.0,0.00018725,2]
[368736097,1751337039059,-460.0,0.00018725,2]
[368736098,1751337039069,-1813.13,0.00018725,2]
[368736099,1751337039191,-460.0,0.00018725,2]
[368736100,1751337039202,-460.0,0.00018725,2]
[368736101,1751337039213,-460.0,0.00018725,2]
[368736102,1751337039223,-460.0,0.00018725,2]
[368736103,1751337039233,-460.0,0.00018725,2]
[368736104,1751337039243,-543.98,0.00018725,2]
[368736105,1751337039253,-164.8,0.00018725,2]
[368736106,1751337039263,-600.97,0.00018725,2]
[368736107,1751337039273,-476.21,0.00018725,2]
[368736108,1751337039283,-460.0,0.00018725,2]
[368736109,1751337039292,-460.0,0.00018725,2]
[368736110,1751337039301,-460.0,0.00018725,2]
[368736111,1751337039312,-595.55,0.00018725,2]
[368736112,1751337039322,-349.67,0.00018725,2]
[368736113,1751337039331,-460.0,0.00018725,2]
[368736114,1751337039340,-460.0,0.00018725,2]
[368736115,1751337039351,-460.0,0.00018725,2]
[368736116,1751337039360,-357.76884398,0.00018725,2]
[368736117,1751337039370,-460.0,0.00018725,2]
[368736118,1751337039380,-460.0,0.00018725,2]
[368736119,1751337039390,-460.0,0.00018725,2]
[368736120,1751337039400,-460.0,0.00018726,2]
[368736121,1751337039410,-460.0,0.00018726,2]
[368736122,1751337039419,-460.0,0.00018726,2]
[368736123,1751337039430,-460.0,0.00018726,2]
[368736124,1751337039440,-460.0,0.00018726,2]
[368736125,1751337039450,-460.0,0.00018726,2]
[368736126,1751337039459,-460.0,0.00018726,2]
[368736127,1751337039571,-453.72547624,0.00018726,2]
[368736128,1751337039580,-460.0,0.00018726,2]
[368736129,1751337039590,-485.41,0.00018726,2]
[368736130,1751337039600,-460.0,0.00018726,2]
[368736131,1751337039609,-460.0,0.00018726,2]
[368736132,1751337039619,-509.44,0.00018726,2]
[368736133,1751337039629,-460.0,0.00018726,2]
[368736134,1751337039640,-460.0,0.00018726,2]
[368736135,1751337039651,-460.0,0.00018726,2]
[368736136,1751337039662,-900.2,0.00018726,2]
[368736137,1751337039672,-460.0,0.00018726,2]
[368736138,1751337039681,-460.0,0.00018726,2]
[368736139,1751337039691,-460.0,0.00018726,2]
[368736140,1751337039700,-347.88,0.00018726,2]
[368736141,1751337039710,-569.91,0.00018726,2]
[368736142,1751337039721,-1592.0,0.00018726,2]
[368736143,1751337039730,-460.0,0.00018726,2]
[368736144,1751337039740,-231.42,0.00018726,2]
[368736145,1751337039750,-915.52,0.00018726,2]
[368736146,1751337039760,-2903.42,0.00018726,2]
[368736147,1751337039770,-460.0,0.00018726,2]
[368736148,1751337039780,-460.0,0.00018726,2]
[368736149,1751337039790,-466.03619387,0.00018726,2]
[368736150,1751337039800,-460.0,0.00018726,2]
[368736151,1751337039810,-662.92,0.00018726,2]
[368736152,1751337039820,-1450.0,0.00018726,2]
[368736153,1751337039830,-516.56,0.00018726,2]
[368736154,1751337039841,-172.09,0.00018726,2]
[368736156,1751337039852,-460.0,0.00018726,2]
[368736157,1751337039862,-2945.16,0.00018726,2]
[368736158,1751337039872,-1087.5,0.00018726,2]
[368736159,1751337039882,-460.0,0.00018726,2]
[368736160,1751337039892,-1189.54,0.00018726,2]
[368736161,1751337039902,-460.0,0.00018726,2]
[368736162,1751337039912,-460.0,0.00018727,2]
[368736163,1751337039922,-465.7863875,0.00018727,2]
[368736164,1751337039933,-547.38,0.00018728,2]
[368736165,1751337039943,-282.32951018,0.00018728,2]
[368736166,1751337039953,-460.0,0.00018728,2]
[368736167,1751337039962,-460.0,0.00018728,2]
[368736168,1751337039971,-460.0,0.00018728,2]
[368736169,1751337039981,-277.4737962,0.00018728,2]
[368736170,1751337039991,-460.0,0.00018728,2]
[368736171,1751337040000,-460.0,0.00018728,2]
[368736172,1751337040012,-460.0,0.00018728,2]
[368736173,1751337040022,-460.0,0.00018728,2]
[368736174,1751337040031,-460.0,0.00018728,2]
[368736175,1751337040041,-226.72562982,0.00018728,2]
[368736176,1751337040050,-348.84,0.00018728,2]
[368736177,1751337040060,-415.71,0.00018728,2]
[368736178,1751337040070,-549.94,0.00018728,2]
[368736179,1751337040079,-460.0,0.00018728,2]
[368736180,1751337040089,-460.0,0.00018728,2]
[368736182,1751337040099,-460.0,0.00018728,2]
[368736183,1751337040108,-460.0,0.00018728,2]
[368736185,1751337040118,-460.0,0.00018728,2]
[368736187,1751337040127,-460.0,0.00018728,2]
[368736189,1751337040137,-460.0,0.00018728,2]
[368736191,1751337040146,-460.0,0.00018728,2]
[368736192,1751337040156,-168.0,0.00018732,2]
[368736193,1751337040169,-460.0,0.00018829,2]
[368736194,1751337040178,-168.0,0.00018868,2]
[368736195,1751337040189,-446.47087695,0.00018875,2]
[368736196,1751337040200,-168.0,0.00018885,2]
[368736197,1751337040210,-853.82121164,0.000189,2]
[368736198,1751337040219,-150.0,0.000189,2]
[368736199,1751337040229,-151.0,0.000189,2]
[368736200,1751337040240,-603.8,0.00018997,2]
[368736201,1751337040252,-1297.73,0.00018997,2]
[368736202,1751337040263,-460.0,0.00018997,2]
[368736203,1751337040273,-460.0,0.00018998,2]
[368736204,1751337040282,-671.74,0.00018998,2]
[368736205,1751337040293,-1712.85,0.00018998,2]
[368736206,1751337040304,-1642.06,0.00018998,2]
[368736207,1751337040314,-460.0,0.00018998,2]
[368736209,1751337040323,-460.0,0.00018998,2]
[368736211,1751337040333,-1788.74,0.00018998,2]
[368736213,1751337040343,-386.02,0.00018998,2]
[368736215,1751337040352,-2476.94,0.00018998,2]
[368736217,1751337040362,-2036.86,0.00018998,2]
[368736221,1751337040373,-460.0,0.00018998,2]
[368736224,1751337040383,-935.68,0.00018998,2]
[368736226,1751337040392,-460.0,0.00018998,2]
[368736228,1751337040402,-460.0,0.00018998,2]
[368736230,1751337040412,-460.0,0.00018998,2]
[368736232,1751337040421,-428.6,0.00018998,2]
[368736234,1751337040431,-460.0,0.00018998,2]
[368736236,1751337040440,-462.42954973,0.00018999,2]
[368736238,1751337040451,-461.86388387,0.00018999,2]
[368736240,1751337040461,-462.18697128,0.00018999,2]
[368736242,1751337040470,-460.0,0.00018999,2]
[368736244,1751337040479,-460.0,0.00018999,2]
[368736246,1751337040489,-460.0,0.00018999,2]
[368736248,1751337040498,-460.0,0.00018999,2]
[368736250,1751337040507,-196.26817529,0.00018999,2]
[368736252,1751337040516,-460.0,0.00018999,2]
[368736254,1751337040526,-945.61,0.00018999,2]
[368736255,1751337040535,-460.0,0.00018999,2]
[368736257,1751337040545,-460.0,0.00018999,2]
[368736258,1751337040554,-460.0,0.00018999,2]
[368736259,1751337040564,-460.0,0.00018999,2]
[368736260,1751337040573,-227.08296439,0.00018999,2]
[368736261,1751337040776,-316.12703561,0.00018999,2]
[368736262,1751337040786,-460.0,0.00018999,2]
[368736263,1751337040795,-1813.13,0.00018999,2]
[368736264,1751337040805,-460.0,0.00018999,2]
[368736265,1751337040815,-460.0,0.00018999,2]
[368736266,1751337040824,-175.21963623,0.00018999,2]
[368736267,1751337040833,-460.0,0.00018999,2]
[368736268,1751337040843,-460.0,0.00018999,2]
[368736269,1751337040853,-476.21,0.00018999,2]
[368736270,1751337040862,-289.51425241,0.00018999,2]
[368736271,1751337040872,-533.59225647,0.00018999,2]
[368736272,1751337040881,-592.42273071,0.00018999,2]
[368736273,1751337040890,-595.55,0.00018999,2]
[368736274,1751337040900,-460.0,0.00018999,2]
[368736275,1751337040910,-460.0,0.00018999,2]
[368736276,1751337040919,-460.0,0.00018999,2]
[368736277,1751337040929,-460.0,0.00018999,2]
[368736278,1751337040939,-460.0,0.00018999,2]
[368736279,1751337040948,-460.0,0.00018999,2]
[368736280,1751337040958,-378.26188439,0.00019,2]
[368736281,1751337040968,-500.0,0.00019,2]
[368736282,1751337040978,-368.27117844,0.00019,2]
[368736283,1751337040988,-502.53437731,0.00019,2]
[368736284,1751337040997,-500.0,0.00019,2]
[368736285,1751337041007,-500.0,0.00019,2]
[368736286,1751337041017,-501.86789783,0.00019,2]
[368736287,1751337041026,-460.0,0.00019,2]
[368736288,1751337041036,-460.0,0.00019,2]
[368736289,1751337041046,-460.0,0.00019,2]
[368736290,1751337041055,-588.39731861,0.00019,2]
[368736291,1751337041065,-460.0,0.00019,2]
[368736292,1751337041074,-460.0,0.00019,2]
[368736293,1751337041084,-508.21099302,0.00019,2]
[368736294,1751337041093,-216.44037753,0.00019,2]
[368736295,1751337041103,-485.41,0.00019,2]
[368736296,1751337041113,-460.0,0.00019,2]
[368736297,1751337041123,-495.86560515,0.00019,2]
[368736298,1751337041132,-534.09,0.00019,2]
[368736299,1751337041141,-460.0,0.00019,2]
[368736300,1751337041150,-460.0,0.00019,2]
[368736301,1751337041160,-900.2,0.00019,2]
[368736302,1751337041172,-460.0,0.00019,2]
[368736303,1751337041182,-200.0,0.00019,2]
[368736304,1751337041193,-460.0,0.00019,2]
[368736305,1751337041202,-460.0,0.00019,2]
[368736306,1751337041212,-1592.0,0.00019,2]
[368736307,1751337041222,-345.66,0.00019,2]
[368736308,1751337041231,-915.52,0.00019,2]
[368736309,1751337041242,-2903.42,0.00019,2]
[368736310,1751337041251,-460.0,0.00019,2]
[368736311,1751337041261,-460.0,0.00019,2]
[368736312,1751337041270,-1177.62815535,0.00019,2]
[368736313,1751337041279,-662.92,0.00019,2]
[368736314,1751337041289,-9526.08348525,0.00019,20]
[368736315,1751337041299,-1450.0,0.00019,2]
[368736316,1751337041308,-516.56,0.00019,2]
[368736317,1751337041318,-306.0,0.00019,2]
[368736318,1751337041328,-460.0,0.00019,2]
[368736319,1751337041337,-2945.16,0.00019,2]
[368736320,1751337041347,-1087.5,0.00019,2]
[368736321,1751337041357,-460.0,0.00019,2]
[368736322,1751337041366,-3653.97220898,0.00019,2]
[368736323,1751337041375,-1189.54,0.00019,2]
[368736324,1751337041384,-460.0,0.00019,2]
[368736325,1751337041394,-460.0,0.00019001,2]
[368736326,1751337041405,-385.76,0.00019002,2]
[368736327,1751337041415,-460.0,0.00019002,2]
[368736328,1751337041517,-349.38860811,0.00019002,2]
[368736329,1751337041528,-218.91839047,0.00019002,2]
[368736330,1751337041538,-577.22048054,0.00019002,2]
[368736331,1751337041547,-460.0,0.00019002,2]
[368736332,1751337041557,-460.0,0.00019002,2]
[368736333,1751337041567,-460.0,0.00019002,2]
[368736334,1751337041577,-551.99,0.00019002,2]
[368736335,1751337041586,-460.0,0.00019002,2]
[368736336,1751337041596,-460.0,0.00019002,2]
[368736337,1751337041605,-460.0,0.00019002,2]
[368736338,1751337041615,-460.0,0.00019002,2]
[368736339,1751337041624,-500.0,0.00019019,2]
[368736340,1751337041634,-500.0,0.00019019,2]
[368736341,1751337041644,-501.16569935,0.00019022,2]
[368736342,1751337041654,-168.0,0.00019029,2]
[368736343,1751337041663,-500.0,0.00019036,2]
[368736344,1751337041673,-947.08470196,0.00019046,2]
[368736345,1751337041684,-238.79181011,0.00019059,2]
[368736346,1751337041694,-168.0,0.00019073,2]
[368736347,1751337041703,-497.83922593,0.00019103,2]
[368736348,1751337041713,-3653.97220895,0.00019107,2]
[368736349,1751337041722,-206.5991454,0.00019178,2]
[368736350,1751337041732,-327.542611,0.00019178,2]
[368736351,1751337041742,-837.20943635,0.00019198,2]
[368736352,1751337041751,-847.53272281,0.00019198,2]
[368736353,1751337041760,-12571.40790328,0.00019198,2]
[368736354,1751337041770,-230.32585361,0.00019198,2]
[368736355,1751337041780,-160.0,0.00019198,2]
[368736356,1751337041789,-160.0,0.00019198,2]
[368736357,1751337041800,-215.01728679,0.00019198,2]
[368736358,1751337041809,-213.87551669,0.00019198,2]
[368736359,1751337041819,-160.0,0.00019198,2]
[368736360,1751337041828,-160.0,0.00019198,2]
[368736361,1751337041838,-160.0,0.00019198,2]
[368736362,1751337041847,-160.0,0.00019198,2]
[368736363,1751337041857,-160.0,0.00019198,2]
[368736364,1751337041866,-160.0,0.00019198,2]
[368736365,1751337041876,-168.0,0.00019234,2]
[368736366,1751337041885,-1297.73,0.00019271,2]
[368736367,1751337041895,-460.0,0.00019271,2]
[368736368,1751337041904,-671.74,0.00019272,2]
[368736369,1751337041914,-1712.85,0.00019272,2]
[368736370,1751337041923,-1642.06,0.00019272,2]